bitfinex/quotes_SOLUSD_20250718
["timestamp","ask_amount","ask_price","bid_price","bid_amount"]
[1752800942089,0.06,179.99,179.98,46.91468397]
[1752800942312,6.06236492,179.99,179.98,46.91468397]
[1752800942485,6.77236492,179.99,179.98,46.91468397]
[1752800942690,0.77,179.99,179.98,46.91468397]
[1752800942886,6.77236492,179.99,179.98,46.91468397]
[1752800943305,6.77236492,179.99,179.98,16.81468397]
[1752800943811,38.32822913,179.99,179.98,0.03]
[1752800944510,32.77236492,179.99,179.98,0.03]
[1752800945312,0.06,179.99,179.98,16.81468397]
[1752800948015,0.77,179.99,179.98,0.03]
[1752800948700,0.77,179.99,179.98,16.81468397]
[1752800948701,0.06,179.99,179.98,16.81468397]
[1752800952117,0.06,179.99,179.98,22.37085687]
[1752800952410,0.06,179.99,179.98,23.05085687]
[1752800953000,0.06,179.99,179.98,16.81468397]
[1752800958620,0.77,179.99,179.98,16.81468397]
[1752800959008,0.06,179.99,179.98,46.89468397]
[1752800959604,0.06,179.99,179.98,58.45322179]
[1752800959817,0.06,179.99,179.98,59.13322179]
[1752800962209,0.06,179.99,179.98,58.45322179]
[1752800962903,0.06,179.99,179.98,46.89468397]
[1752800964310,0.06,179.99,179.98,52.89704889]
[1752800965626,128.91044125,180.0,179.98,58.45322179]
[1752800965826,128.91044125,180.0,179.99,6.00236492]
[1752800966130,129.60044125,180.0,179.99,16.78468397]
[1752800966427,128.91044125,180.0,179.99,52.84704889]
[1752800966620,128.91044125,180.0,179.99,53.56704889]
[1752800967528,128.91044125,180.0,179.99,59.1229131]
[1752800968924,129.60044125,180.0,179.98,0.03]
[1752800969108,0.69,179.99,179.98,16.81468397]
[1752800969311,128.91044125,180.0,179.98,52.43077512]
[1752800969501,128.91044125,180.0,179.98,58.43314004]
[1752800969925,128.91044125,180.0,179.99,6.72236492]
[1752800970317,128.91044125,180.0,179.98,52.43077512]
[1752800970520,128.91044125,180.0,179.99,6.00236492]
[1752800971223,128.91044125,180.0,179.99,6.72236492]
[1752800971922,128.91044125,180.0,179.99,12.27822913]
[1752800973117,128.91044125,180.0,179.99,11.55822913]
[1752800974615,128.91044125,180.0,179.99,12.27822913]
[1752800975924,128.91044125,180.0,179.99,11.55822913]
[1752800976919,128.91044125,180.0,179.99,28.3429131]
[1752800978212,128.91044125,180.0,179.99,23.06054818]
[1752800978418,128.91044125,180.0,179.99,29.0629131]
[1752800978812,128.91044125,180.0,179.99,35.06527802]
[1752800979420,128.91044125,180.0,179.99,65.10527802]
[1752800981026,100.9029394,180.0,179.99,65.10527802]
[1752800981231,37.86093023,180.0,179.99,149.54824818]
[1752800981534,0.06,180.03,180.0,16.78468397]
[1752800981741,0.06,180.03,180.02,16.78468397]
[1752800981945,0.06,180.03,180.02,22.78704889]
[1752800982115,0.06,180.03,180.02,17.50468397]
[1752800982322,0.06,180.03,180.02,29.06198723]
[1752800982942,0.06,180.03,180.02,23.05962231]
[1752800983239,0.06,180.03,180.02,29.06198723]
[1752800984032,0.06,180.03,180.02,28.34198723]
[1752800984230,0.06,180.03,180.02,29.06198723]
[1752800985829,0.1,180.07,180.02,42.94933308]
[1752800986028,0.1,180.07,180.06,22.78704889]
[1752800986335,0.1,180.07,180.06,16.78468397]
[1752800986537,0.79,180.07,180.06,16.78468397]
[1752800986830,0.79,180.07,180.06,46.80468397]
[1752800987345,0.1,180.07,180.06,46.80468397]
[1752800987741,0.79,180.07,180.06,46.80468397]
[1752800988040,0.1,180.07,180.06,46.80468397]
[1752800988243,0.1,180.07,180.06,52.80704889]
[1752800988613,0.1,180.07,180.06,58.36075321]
[1752800989053,0.1,180.07,180.06,46.80468397]
[1752800989345,0.79,180.07,180.06,46.80468397]
[1752800990534,0.1,180.07,180.06,52.80704889]
[1752800990743,0.1,180.07,180.06,58.36075321]
[1752800991669,0.1,180.07,180.06,46.80468397]
[1752800992841,0.1,180.07,180.06,58.36075321]
[1752800994050,0.1,180.07,180.06,59.08075321]
[1752800994221,0.1,180.07,180.06,58.36075321]
[1752800994724,0.1,180.07,180.06,52.35838829]
[1752800995448,0.1,180.07,180.06,58.36075321]
[1752800995948,0.1,180.07,180.06,59.08075321]
[1752800996129,0.1,180.07,180.06,58.36075321]
[1752800997748,0.1,180.07,180.06,46.80468397]
[1752800998927,0.1,180.07,180.06,52.80704889]
[1752801000029,0.1,180.07,180.06,46.80468397]
[1752801000230,0.1,180.07,180.06,52.80704889]
[1752801001041,0.1,180.07,180.06,58.36075321]
[1752801001551,0.1,180.07,180.06,46.80468397]
[1752801001735,0.1,180.07,180.06,52.80704889]
[1752801002447,0.1,180.07,180.06,46.80468397]
[1752801002647,0.1,180.07,180.06,58.36075321]
[1752801002828,0.1,180.07,180.06,28.34075321]
[1752801003149,0.1,180.07,180.06,46.78468397]
[1752801003656,0.1,180.07,180.06,52.78704889]
[1752801005035,0.1,180.07,180.06,50.62119258]
[1752801006545,0.1,180.07,180.06,56.1748969]
[1752801006856,0.1,180.07,180.06,50.62119258]
[1752801008438,0.1,180.07,180.06,56.1748969]
[1752801008640,0.1,180.07,180.06,50.62119258]
[1752801009738,0.1,180.07,180.06,56.1748969]
[1752801009937,0.1,180.07,180.06,46.78468397]
[1752801010339,0.1,180.07,180.06,50.62119258]
[1752801010935,0.1,180.07,180.06,46.78468397]
[1752801012353,0.1,180.07,180.06,50.62119258]
[1752801013853,0.1,180.07,180.06,46.78468397]
[1752801015459,0.1,180.07,180.06,56.1748969]
[1752801015655,0.1,180.07,180.06,46.78468397]
[1752801016045,0.78,180.07,180.06,46.78468397]
[1752801016257,0.1,180.07,180.06,46.78468397]
[1752801016562,0.78,180.07,180.06,46.76468397]
[1752801016747,0.1,180.07,180.06,46.76468397]
[1752801017651,0.78,180.07,180.06,46.76468397]
[1752801017839,0.1,180.07,180.06,50.60119258]
[1752801018361,0.1,180.07,180.06,46.76468397]
[1752801018865,0.1,180.07,180.06,50.60119258]
[1752801019852,0.1,180.07,180.06,46.76468397]
[1752801020051,0.1,180.07,180.06,50.60119258]
[1752801021070,0.1,180.07,180.06,46.76468397]
[1752801021371,0.1,180.07,180.06,50.60119258]
[1752801022172,0.1,180.07,180.06,56.1548969]
[1752801022466,0.1,180.07,180.06,50.60119258]
[1752801023262,0.1,180.07,180.06,56.1548969]
[1752801024265,0.1,180.07,180.06,56.8748969]
[1752801024664,0.1,180.07,180.06,53.03838829]
[1752801024965,0.1,180.07,180.06,52.31838829]
[1752801025165,0.1,180.07,180.06,56.1548969]
[1752801025569,0.1,180.07,180.06,58.3829969]
[1752801025758,0.06,180.15,180.12,7.8481]
[1752801025944,18.44890163,180.23,180.14,20.62119258]
[1752801025945,12.90040377,180.23,180.14,20.62119258]
[1752801026146,18.44892715,180.23,180.16,16.78468397]
[1752801026344,12.90040377,180.23,180.17,16.78468397]
[1752801026566,6.2614,180.3,180.23,16.78468397]
[1752801026567,6.21638408,180.3,180.23,16.78468397]
[1752801026753,4.82270389,180.29,180.28,20.62119258]
[1752801026952,0.67,180.29,180.19,0.56]
[1752801027154,26.0,180.26,180.2,29.94]
[1752801027358,7.8247,180.24,180.18,5.98111339]
[1752801027661,5.98111339,180.21,180.16,16.78468397]
[1752801027864,5.98111339,180.19,180.12,35.92111339]
[1752801028057,26.0,180.16,180.12,35.92111339]
[1752801028254,0.67,180.15,180.12,29.94]
[1752801028459,26.67,180.15,180.12,35.92111339]
[1752801028656,26.67,180.15,180.14,16.78468397]
[1752801028948,26.0,180.16,180.14,46.72468397]
[1752801029152,26.67,180.16,180.14,46.72468397]
[1752801029465,26.0,180.18,180.15,22.76579736]
[1752801029648,0.67,180.19,180.17,16.78468397]
[1752801029851,0.67,180.19,180.18,46.72468397]
[1752801030052,6.21969754,180.19,180.18,46.72468397]
[1752801030372,6.21969754,180.19,180.17,29.94]
[1752801030548,26.0,180.17,180.16,46.72468397]
[1752801030749,26.67,180.17,180.16,46.72468397]
[1752801030975,0.67,180.2,180.17,16.78468397]
[1752801031173,5.54846584,180.23,180.19,16.78468397]
[1752801031472,0.67,180.22,180.21,16.78468397]
[1752801031951,6.21877372,180.22,180.21,16.78468397]
[1752801032557,32.21877372,180.22,180.21,16.78468397]
[1752801033366,26.67,180.22,180.21,16.78468397]
[1752801033777,32.21877372,180.22,180.21,16.78468397]
[1752801034678,26.0,180.22,180.21,16.78468397]
[1752801034889,6.2163117,180.3,180.21,23.32579736]
[1752801035098,5.5463117,180.3,180.23,16.78468397]
[1752801035382,5.5463117,180.3,180.25,16.78468397]
[1752801035383,0.67,180.29,180.25,16.78468397]
[1752801035571,5.546927,180.28,180.25,16.78468397]
[1752801035878,6.65111339,180.27,180.25,16.78468397]
[1752801036073,5.98111339,180.28,180.24,30.16]
[1752801036277,26.0,180.25,180.24,30.16]
[1752801036451,0.73,180.3,180.24,36.80111339]
[1752801036774,0.06,180.3,180.25,17.34468397]
[1752801036969,0.06,180.3,180.26,53.10579736]
[1752801037165,0.06,180.3,180.26,47.68468397]
[1752801037370,5.54415922,180.37,180.27,0.69]
[1752801037550,2.89071953,180.36,180.29,16.78468397]
[1752801037753,2.89071953,180.36,180.31,16.78468397]
[1752801037956,5.98111339,180.33,180.32,31.9]
[1752801038275,2.89071953,180.36,180.29,31.94]
[1752801038276,8.87183292,180.36,180.29,31.94]
[1752801038573,2.89071953,180.36,180.27,32.63]
[1752801038748,2.89071953,180.36,180.28,48.74468397]
[1752801039074,10.0,180.38,180.29,22.76579736]
[1752801039075,5.54386845,180.38,180.29,22.76579736]
[1752801039268,5.98111339,180.34,180.31,16.78468397]
[1752801039458,5.98111339,180.34,180.3,32.94]
[1752801039459,6.21532539,180.34,180.3,32.94]
[1752801039650,6.21532539,180.34,180.28,50.45468397]
[1752801039974,6.21532539,180.34,180.26,32.96]
[1752801039975,26.0,180.31,180.26,32.96]
[1752801040177,0.67,180.3,180.26,32.96]
[1752801040494,26.0,180.31,180.27,23.45579736]
[1752801040771,0.67,180.32,180.28,38.94111339]
[1752801040986,26.0,180.31,180.28,33.65]
[1752801041275,26.67,180.31,180.28,32.98]
[1752801041570,0.67,180.31,180.28,32.98]
[1752801041777,26.0,180.32,180.28,32.98]
[1752801041957,38.19683501,180.32,180.28,32.98]
[1752801042157,32.21509197,180.34,180.28,39.65111339]
[1752801042364,32.21509197,180.34,180.29,5.98111339]
[1752801042365,26.0,180.32,180.29,5.98111339]
[1752801042576,6.2151165,180.34,180.29,5.98111339]
[1752801042877,5.98111339,180.35,180.28,49.76468397]
[1752801042878,0.67,180.37,180.32,5.98111339]
[1752801043173,0.67,180.37,180.32,33.04]
[1752801043354,32.65111339,180.37,180.32,33.04]
[1752801043559,0.67,180.36,180.32,33.04]
[1752801043961,12.19561888,180.36,180.32,33.04]
[1752801044269,6.65111339,180.35,180.3,49.88468397]
[1752801044577,2.88998092,180.38,180.35,16.78468397]
[1752801044756,12.19494001,180.39,180.34,16.78468397]
[1752801045074,0.67,180.38,180.34,16.78468397]
[1752801045281,5.54382662,180.39,180.34,16.78468397]
[1752801045577,8.43296,180.4,180.35,0.69]
[1752801045765,5.98111339,180.39,180.35,0.69]
[1752801045959,0.67,180.39,180.35,0.69]
[1752801046162,34.43296,180.4,180.36,6.67111339]
[1752801046362,35.10296,180.4,180.34,17.47468397]
[1752801046563,5.54231557,180.43,180.34,16.78468397]
[1752801046770,11.52342896,180.43,180.35,0.69]
[1752801047055,9.54029936,180.42,180.37,5.98111339]
[1752801047372,3.55918597,180.42,180.36,16.78468397]
[1752801047574,5.98111339,180.41,180.36,22.76579736]
[1752801047760,6.21323725,180.4,180.36,16.78468397]
[1752801048080,35.10209998,180.42,180.37,6.67111339]
[1752801048370,35.10209998,180.42,180.36,16.78468397]
[1752801048371,0.67,180.41,180.36,16.78468397]
[1752801048582,0.67,180.41,180.36,23.45579736]
[1752801048764,0.67,180.41,180.37,6.67111339]
[1752801049156,40.41321337,180.42,180.4,0.0983313]
[1752801049361,31.54291401,180.42,180.4,0.0983313]
[1752801049961,26.0,180.42,180.4,0.0983313]
[1752801050181,14.41286014,180.43,180.41,17.47468397]
[1752801050182,2.88937482,180.43,180.41,17.47468397]
[1752801050353,0.14667647,180.44,180.42,5.98111339]
[1752801050559,26.14667647,180.44,180.42,17.47468397]
[1752801050759,0.14667647,180.44,180.42,17.47468397]
[1752801050954,0.14667647,180.44,180.41,33.18]
[1752801051258,31.98111339,180.42,180.4,0.0983313]
[1752801051460,6.65111339,180.41,180.4,0.0983313]
[1752801051718,12.19404338,180.41,180.4,0.0983313]
[1752801051869,6.21292999,180.41,180.4,0.0983313]
[1752801052062,12.19404338,180.41,180.4,0.0983313]
[1752801052484,45.33404338,180.41,180.4,1e-08]
[1752801052778,26.0,180.38,180.29,33.83]
[1752801052988,5.98111339,180.33,180.3,16.78468397]
[1752801053369,5.98111339,180.31,180.28,33.81]
[1752801053565,5.98111339,180.3,180.28,33.12]
[1752801053863,5.54575275,180.32,180.28,33.81]
[1752801054171,5.98111339,180.31,180.28,33.81]
[1752801054578,5.98111339,180.31,180.28,33.12]
[1752801054884,5.98111339,180.3,180.28,33.12]
[1752801056191,26.0,180.26,180.22,1.6354]
[1752801056381,5.98111339,180.23,180.17,0.72]
[1752801056695,5.98111339,180.21,180.18,33.0]
[1752801056891,5.98111339,180.21,180.19,16.78468397]
[1752801057089,5.98111339,180.21,180.2,0.03]
[1752801057981,11.53019501,180.21,180.2,0.03]
[1752801058493,26.66,180.24,180.2,0.03]
[1752801058681,31.98111339,180.24,180.2,0.75]
[1752801058877,5.5483146,180.24,180.2,0.75]
[1752801059085,26.0,180.25,180.21,16.78468397]
[1752801059279,35.75331925,180.25,180.21,0.72]
[1752801059493,35.75331925,180.25,180.22,16.78468397]
[1752801059803,15.30090068,180.26,180.22,16.78468397]
[1752801060102,5.54758143,180.26,180.2,0.03]
[1752801060394,9.75331925,180.21,180.2,0.03]
[1752801060594,9.75331925,180.22,180.2,0.03]
[1752801060809,9.75331925,180.24,180.2,16.81468397]
[1752801060998,5.54758143,180.26,180.21,0.72]
[1752801061174,9.75331925,180.25,180.21,0.72]
[1752801061599,5.54758143,180.26,180.21,0.72]
[1752801061897,9.75331925,180.22,180.2,0.03]
[1752801062271,26.0,180.23,180.2,0.03]
[1752801062478,6.20758143,180.26,180.2,0.75]
[1752801062677,41.96090068,180.26,180.2,0.75]
[1752801062879,41.96090068,180.26,180.21,9.75331925]
[1752801063082,26.0,180.23,180.21,42.69331925]
[1752801063408,26.0,180.23,180.22,16.78468397]
[1752801063611,26.0,180.24,180.22,27.25800322]
[1752801063783,0.66,180.28,180.24,16.78468397]
[1752801064101,0.66,180.28,180.24,26.53800322]
[1752801064419,5.54636067,180.3,180.25,42.67331925]
[1752801064582,6.20636067,180.3,180.25,43.39331925]
[1752801064784,10.41331925,180.29,180.25,32.92]
[1752801065090,10.41331925,180.28,180.24,32.92]
[1752801065294,36.41331925,180.28,180.24,32.92]
[1752801065481,0.66,180.27,180.24,32.92]
[1752801065802,0.66,180.27,180.21,17.53468397]
[1752801065803,35.75331925,180.25,180.21,0.03]
[1752801066003,26.0,180.24,180.21,0.03]
[1752801066506,26.66,180.24,180.21,0.03]
[1752801066812,26.0,180.24,180.21,0.03]
[1752801067017,9.75331925,180.22,180.21,0.03]
[1752801067180,0.66,180.23,180.21,0.03]
[1752801067376,10.41331925,180.22,180.21,0.03]
[1752801067575,6.20877372,180.22,180.21,0.03]
[1752801067789,15.96209297,180.22,180.21,0.03]
[1752801068187,6.20877372,180.22,180.21,0.03]
[1752801068387,15.96209297,180.22,180.21,0.03]
[1752801068581,6.20877372,180.22,180.21,0.03]
[1752801068790,0.66,180.22,180.21,0.03]
[1752801068993,0.66,180.26,180.21,0.03]
[1752801069294,0.66,180.26,180.21,0.75]
[1752801069295,26.0,180.23,180.21,0.75]
[1752801069489,26.0,180.23,180.21,0.03]
[1752801069999,0.66,180.26,180.22,16.78468397]
[1752801070311,6.4106,180.31,180.23,9.75331925]
[1752801070312,26.0,180.25,180.23,9.75331925]
[1752801070481,26.0,180.25,180.22,17.50468397]
[1752801070689,26.0,180.26,180.22,27.25800322]
[1752801070888,26.0,180.26,180.23,0.72]
[1752801071105,3.55136656,180.28,180.23,9.75331925]
[1752801071419,3.55136656,180.28,180.23,0.72]
[1752801071590,26.0,180.26,180.24,17.50468397]
[1752801071788,5.54661933,180.29,180.24,17.50468397]
[1752801071789,26.0,180.25,180.24,17.50468397]
[1752801072188,26.0,180.25,180.21,0.03]
[1752801072390,26.0,180.25,180.23,16.78468397]
[1752801072585,0.66,180.27,180.22,16.78468397]
[1752801072586,26.0,180.24,180.22,16.78468397]
[1752801073007,26.0,180.24,180.23,10.47331925]
[1752801073223,49.2027,180.35,180.23,10.47331925]
[1752801073224,5.54627648,180.31,180.23,10.47331925]
[1752801073524,26.0,180.28,180.25,16.78468397]
[1752801073686,26.0,180.28,180.26,10.47331925]
[1752801073886,35.75331925,180.28,180.25,33.78]
[1752801074106,32.20659355,180.3,180.25,43.53331925]
[1752801074295,0.66,180.29,180.25,33.78]
[1752801074491,0.66,180.28,180.25,33.78]
[1752801074699,9.75331925,180.29,180.25,33.78]
[1752801074700,10.41331925,180.27,180.25,33.78]
[1752801074885,31.54659355,180.3,180.23,16.78468397]
[1752801074886,10.41331925,180.26,180.23,16.78468397]
[1752801075087,0.66,180.26,180.23,16.78468397]
[1752801075586,45.4123728,180.3,180.23,16.78468397]
[1752801075788,26.66,180.3,180.24,9.75331925]
[1752801075982,26.0,180.26,180.25,16.78468397]
[1752801076292,26.0,180.26,180.25,17.50468397]
[1752801076489,26.0,180.27,180.25,27.25800322]
[1752801076808,9.75331925,180.31,180.27,16.78468397]
[1752801077016,5.54574966,180.32,180.27,16.78468397]
[1752801077323,0.66,180.33,180.27,16.78468397]
[1752801077324,3.55068252,180.33,180.28,10.47331925]
[1752801077537,3.55068252,180.33,180.29,0.72]
[1752801077538,2.89068252,180.33,180.29,0.72]
[1752801077810,0.66,180.35,180.31,16.78468397]
[1752801078189,2.89019552,180.37,180.31,26.53800322]
[1752801078388,15.29686379,180.39,180.33,26.53800322]
[1752801078713,2.88981411,180.4,180.35,26.53800322]
[1752801078917,9.81331925,180.42,180.37,16.78468397]
[1752801079089,0.06,180.42,180.39,16.78468397]
[1752801079288,0.06,180.42,180.4,0.72]
[1752801079505,0.06,180.42,180.35,16.78468397]
[1752801079716,0.06,180.42,180.34,33.96]
[1752801079717,0.06,180.42,180.39,0.72]
[1752801079881,26.0,180.4,180.39,0.72]
[1752801080086,26.0,180.4,180.36,10.47331925]
[1752801080304,0.06,180.42,180.4,16.78468397]
[1752801080691,0.06,180.42,180.4,0.72]
[1752801080992,26.0,180.41,180.37,9.75331925]
[1752801081186,0.06,180.42,180.39,16.78468397]
[1752801081605,0.06,180.42,180.4,0.72]
[1752801081789,0.06,180.42,180.4,10.47331925]
[1752801082113,0.06,180.42,180.41,0.72]
[1752801082619,8.13632709,180.47,180.41,0.72]
[1752801082795,9.75331925,180.47,180.41,0.72]
[1752801083109,5.54047315,180.49,180.41,10.47331925]
[1752801083410,20.05165604,180.49,180.38,10.47331925]
[1752801083594,26.0,180.46,180.39,26.53800322]
[1752801083801,0.66,180.45,180.39,0.72]
[1752801083999,31.54164735,180.46,180.39,10.47331925]
[1752801084189,31.54164735,180.46,180.37,16.78468397]
[1752801084392,32.20164735,180.46,180.4,0.72]
[1752801084617,31.54164735,180.46,180.4,0.72]
[1752801084827,26.0,180.42,180.4,0.72]
[1752801085195,26.0,180.42,180.41,0.7]
[1752801085403,0.66,180.48,180.41,0.7]
[1752801085603,0.66,180.48,180.41,10.45331925]
[1752801085604,35.75331925,180.47,180.41,10.45331925]
[1752801085806,41.29454654,180.47,180.42,17.48468397]
[1752801085995,41.29454654,180.47,180.43,0.7]
[1752801086201,0.1,180.5,180.46,1.614]
[1752801086405,0.1,180.5,180.48,16.78468397]
[1752801086605,0.1,180.5,180.49,17.48468397]
[1752801087214,0.1,180.5,180.49,27.23800322]
[1752801087418,0.1,180.5,180.49,17.48468397]
[1752801087914,0.1,180.5,180.46,35.794]
[1752801087915,0.1,180.5,180.46,46.24731925]
[1752801088112,5.64021089,180.5,180.47,16.78468397]
[1752801088297,5.64021089,180.5,180.46,0.7]
[1752801088499,0.1,180.5,180.46,10.45331925]
[1752801088700,0.1,180.5,180.47,27.23800322]
[1752801089028,0.1,180.5,180.47,17.48468397]
[1752801089733,0.1,180.5,180.48,0.7]
[1752801090517,0.1,180.5,180.49,27.23800322]
[1752801090724,0.1,180.5,180.44,16.66]
[1752801090926,6.31017914,180.5,180.44,51.64468397]
[1752801091133,6.31017914,180.5,180.44,17.48468397]
[1752801091418,15.39348696,180.5,180.44,27.23800322]
[1752801091622,0.1,180.5,180.46,16.78468397]
[1752801091829,26.0,180.49,180.47,0.7]
[1752801092333,0.1,180.5,180.48,0.7]
[1752801092498,0.1,180.5,180.49,17.48468397]
[1752801093422,0.1,180.5,180.49,16.78468397]
[1752801093619,0.1,180.5,180.45,6.24161962]
[1752801093818,0.1,180.5,180.47,16.78468397]
[1752801094022,0.1,180.5,180.47,17.48468397]
[1752801094902,0.1,180.5,180.48,0.7]
[1752801095104,0.1,180.5,180.49,10.45331925]
[1752801095515,0.1,180.5,180.49,0.7]
[1752801095908,0.1,180.5,180.49,27.23800322]
[1752801096448,0.1,180.5,180.48,9.75331925]
[1752801096603,0.1,180.5,180.48,16.78468397]
[1752801096806,0.1,180.5,180.48,27.23800322]
[1752801097019,0.1,180.5,180.48,17.48468397]
[1752801097228,0.1,180.5,180.48,0.7]
[1752801097418,0.1,180.5,180.47,43.85331925]
[1752801097823,0.1,180.5,180.47,44.55331925]
[1752801098013,0.1,180.5,180.47,34.8]
[1752801098319,0.1,180.5,180.48,0.7]
[1752801098812,0.1,180.5,180.47,34.1]
[1752801099013,0.1,180.5,180.49,0.7]
[1752801099637,0.1,180.5,180.47,34.1]
[1752801099844,0.1,180.5,180.48,0.7]
[1752801100155,0.1,180.5,180.46,27.23800322]
[1752801100435,0.1,180.5,180.47,0.7]
[1752801100612,9.85331925,180.5,180.45,10.45331925]
[1752801100813,0.1,180.5,180.46,17.48468397]
[1752801101219,0.1,180.5,180.47,10.45331925]
[1752801101418,0.1,180.5,180.47,0.7]
[1752801101613,0.1,180.5,180.42,5.54262276]
[1752801101614,26.0,180.48,180.42,6.24262276]
[1752801101816,9.75331925,180.47,180.43,16.78468397]
[1752801102031,35.75331925,180.48,180.43,17.48468397]
[1752801102217,9.75331925,180.47,180.43,16.78468397]
[1752801102422,9.75331925,180.47,180.43,16.81468397]
[1752801102727,9.75331925,180.47,180.43,17.51468397]
[1752801103126,41.96419609,180.48,180.43,17.51468397]
[1752801103326,4.08079504,180.47,180.43,17.51468397]
[1752801103633,4.75079504,180.46,180.43,0.03]
[1752801103934,4.08079504,180.45,180.43,0.03]
[1752801104129,9.75331925,180.44,180.43,0.03]
[1752801104535,26.0,180.44,180.43,0.03]
[1752801104831,0.1,180.5,180.43,0.73]
[1752801105036,4.08132667,180.49,180.48,9.75331925]
[1752801105210,4.08132667,180.49,180.48,61.25800322]
[1752801105416,0.1,180.5,180.49,16.78468397]
[1752801105616,4.1814536,180.5,180.49,16.78468397]
[1752801105927,4.1814536,180.5,180.48,44.49331925]
[1752801106236,4.0814536,180.49,180.48,27.23800322]
[1752801106532,0.1,180.5,180.48,32.77878336]
[1752801107040,0.1,180.5,180.49,9.75331925]
[1752801107332,4.18226679,180.5,180.49,9.75331925]
[1752801107540,0.1,180.5,180.49,10.45331925]
[1752801108312,0.1,180.5,180.49,15.9937924]
[1752801109447,0.1,180.5,180.49,6.24047315]
[1752801109617,0.1,180.5,180.49,15.9937924]
[1752801110034,0.1,180.5,180.49,32.77847637]
[1752801110626,0.1,180.5,180.49,66.67847637]
[1752801111223,0.1,180.5,180.49,32.77847637]
[1752801111430,0.1,180.5,180.49,66.65847637]
[1752801112132,0.1,180.5,180.49,23.02515712]
[1752801112439,0.1,180.5,180.49,66.61847637]
[1752801113431,0.1,180.5,180.49,56.86515712]
[1752801113624,0.1,180.5,180.49,66.61847637]
[1752801113825,1e-08,180.5,180.49,66.61847637]
[1752801114034,4.08752686,180.59,180.5,16.78468397]
[1752801114239,10.03192338,180.62,180.52,16.78468397]
[1752801114240,4.08752686,180.58,180.52,16.78468397]
[1752801114425,4.08752686,180.57,180.54,16.78468397]
[1752801114620,26.0,180.59,180.55,34.56]
[1752801114826,4.0884395,180.58,180.56,10.43331925]
[1752801115126,19.73835379,180.62,180.57,33.86]
[1752801115337,26.0,180.59,180.57,43.61331925]
[1752801115520,4.08949166,180.58,180.57,33.86]
[1752801115725,4.08898175,180.61,180.57,43.61331925]
[1752801115922,4.08898175,180.6,180.59,9.75331925]
[1752801116128,4.08898175,180.6,180.59,33.84]
[1752801116442,4.08898175,180.6,180.59,43.59331925]
[1752801116845,4.08898175,180.6,180.59,34.52]
[1752801117019,4.08898175,180.6,180.59,33.84]
[1752801117219,4.79898175,180.6,180.57,33.86]
[1752801117437,4.08898175,180.59,180.57,33.86]
[1752801117636,4.09050358,180.58,180.57,33.86]
[1752801117836,4.09063129,180.58,180.57,33.86]
[1752801119023,4.09063129,180.58,180.57,44.29331925]
[1752801119454,4.09063129,180.58,180.57,61.07800322]
[1752801119626,4.09063129,180.61,180.57,34.54]
[1752801119951,4.09512878,180.6,180.57,33.86]
[1752801120251,0.71,180.67,180.58,17.46468397]
[1752801120421,39.85209132,180.66,180.6,9.75331925]
[1752801120746,39.85209132,180.66,180.61,34.0]
[1752801120747,4.80877207,180.65,180.61,34.0]
[1752801120928,4.09877207,180.64,180.61,34.68]
[1752801121125,0.71,180.67,180.61,34.68]
[1752801121332,4.10105777,180.66,180.61,44.43331925]
[1752801121652,4.81105777,180.65,180.61,34.68]
[1752801121852,0.71,180.65,180.61,34.68]
[1752801122042,4.09911665,180.64,180.61,34.0]
[1752801122341,4.09911665,180.63,180.61,34.0]
[1752801122549,4.09911665,180.62,180.61,34.0]
[1752801123343,4.80911665,180.62,180.61,34.0]
[1752801124049,4.09911665,180.62,180.61,34.0]
[1752801125028,4.15911665,180.62,180.61,34.0]